[Event "Czech Open GM 2020"]
[Site "Pardubice"]
[Date "2020.09.26"]
[Round "6.5"]
[White "Petr, Martin"]
[Black "Jurcik, Marian"]
[Result "1/2-1/2"]
[ECO "B08"]
[WhiteElo "2484"]
[BlackElo "2426"]
[Annotator "ChessBase"]
[PlyCount "101"]
[EventDate "2020.09.21"]
[EventCountry "CZE"]
[SourceTitle "playchess.com"]
[Source "ChessBase"]
[SourceQuality "1"]
[TimeControl "40/5400+30:1800+30"]

1. Nf3 {[%emt 0:00:01]} g6 {[%emt 0:04:29]} 2. e4 {[%emt 0:03:30]} d6 {[%emt 0:00:28]} 3. d4 {[%emt 0:00:10]} Nf6 {[%emt 0:00:12]} 4. Nc3 {[%emt 0:00:04]} Bg7 {[%emt 0:00:08]} 5. Be3 {[%emt 0:01:53]} a6 {[%emt 0:02:40]} 6. Bd3 {[%emt 0:02:55]} O-O {[%emt 0:00:27]} 7. h3 {[%emt 0:01:41]} Nc6 {[%emt 0:02:03]} 8. O-O {[%emt 0:01:02]} e5 {[%emt 0:02:01]} 9. dxe5 {[%emt 0:13:42]} Nxe5 {[%emt 0:04:53]} 10. Nxe5 {[%emt 0:06:54]} dxe5 {[%emt 0:00:46]} 11. Bc4 {[%emt 0:01:18]} Qe7 {[%emt 0:06:18]} 12. a4 {[%emt 0:02:40]} Be6 {[%emt 0:35:27]} 13. Qe2 {[%emt 0:03:03]} Nh5 {[%emt 0:10:59]} 14. Bxe6 {[%emt 0:04:50]} Qxe6 {[%emt 0:00:30]} 15. Nd5 {[%emt 0:03:08]} Rac8 {[%emt 0:00:33]} 16. Rfd1 {[%emt 0:06:59]} Nf6 {[%emt 0:05:04]} 17. f3 {[%emt 0:08:54]} Nxd5 {[%emt 0:01:43]} 18. exd5 {[%emt 0:02:36]} Qf5 {[%emt 0:03:31]} 19. c4 {[%emt 0:01:46]} Rcd8 {[%emt 0:03:02]} 20. Qd3 {[%emt 0:09:40]} Rfe8 {[%emt 0:02:37]} 21. Qxf5 {[%emt 0:05:38]} gxf5 {[%emt 0:00:01]} 22. Rab1 {[%emt 0:00:01]} f4 {[%emt 0:01:23]} 23. Bf2 {[%emt 0:02:18]} f5 {[%emt 0:01:12]} 24. Kf1 {[%emt 0:00:06]} Kf7 {[%emt 0:01:51]} 25. b4 {[%emt 0:00:07]} Bf6 {[%emt 0:02:52]} 26. b5 {[%emt 0:00:48]} axb5 {[%emt 0:00:28]} 27. Rxb5 {[%emt 0:01:19]} e4 {[%emt 0:01:32]} 28. fxe4 {[%emt 0:07:51]} fxe4 {[%emt 0:00:06]} 29. Rxb7 {[%emt 0:00:02]} e3 {[%emt 0:00:31]} 30. Rxc7+ {[%emt 0:00:03]} Kg6 {[%emt 0:00:41]} 31. Rd3 {[%emt 0:00:45]} Rb8 {[%emt 0:02:29]} 32. Rc6 {[%emt 0:02:10]} Kf5 {[%emt 0:01:26]} 33. Be1 {[%emt 0:02:23]} e2+ {[%emt 0:00:46]} 34. Kg1 {[%emt 0:00:18]} Rb1 {[%emt 0:00:27]} 35. Rxf6+ {[%emt 0:00:09]} Kxf6 {[%emt 0:00:22]} 36. Kf2 {[%emt 0:00:01]} Rc1 {[%emt 0:02:46]} 37. d6 {[%emt 0:00:18]} Ke6 {[%emt 0:00:42]} 38. Bd2 {[%emt 0:03:38]} Kd7 {[%emt 0:00:58]} 39. Be1 {[%emt 0:02:07]} Rxc4 {[%emt 0:00:13]} 40. a5 {[%emt 0:00:03]} Re6 {[%emt 0:00:47]} 41. Ra3 {[%emt 0:32:00]} Kxd6 {[%emt 0:06:48]} 42. a6 {[%emt 0:00:00]} Rc8 {[%emt 0:00:51]} 43. Bd2 {[%emt 0:00:00]} Re4 {[%emt 0:03:50]} 44. Ra1 {[%emt 0:00:00]} Kd5 {[%emt 0:07:34]} 45. Kf3 {[%emt 0:00:00]} Re6 {[%emt 0:01:08]} 46. Be1 {[%emt 0:00:00]} Ra8 {[%emt 0:06:06]} 47. a7 {[%emt 0:00:00]} Re7 {[%emt 0:01:25]} 48. Bf2 {[%emt 0:00:00]} Raxa7 {[%emt 0:02:12]} 49. Bxa7 {[%emt 0:00:00]} e1=Q {[%emt 0:00:08]} 50. Rxe1 {[%emt 0:00:00]} Rxe1 {[%emt 0:00:07]} 51. Kxf4 {[%emt 0:00:00]} 1/2-1/2

[Event "Czech Open GM 2020"]
[Site "Pardubice"]
[Date "2020.09.26"]
[Round "6.6"]
[White "Szpar, Milosz"]
[Black "Vrolijk, Liam"]
[Result "1/2-1/2"]
[ECO "C78"]
[WhiteElo "2397"]
[BlackElo "2481"]
[Annotator "ChessBase"]
[PlyCount "49"]
[EventDate "2020.09.21"]
[EventCountry "CZE"]
[SourceTitle "playchess.com"]
[Source "ChessBase"]
[SourceQuality "1"]
[TimeControl "40/5400+30:1800+30"]

1. e4 {[%emt 0:00:00]} e5 {[%emt 0:10:27]} 2. Nf3 {[%emt 0:00:00]} Nc6 {[%emt 0:00:28]} 3. Bb5 {[%emt 0:00:00]} a6 {[%emt 0:00:07]} 4. Ba4 {[%emt 0:00:06]} Nf6 {[%emt 0:00:07]} 5. O-O {[%emt 0:00:08]} Bc5 {[%emt 0:00:06]} 6. c3 {[%emt 0:02:10]} b5 {[%emt 0:00:08]} 7. Bb3 {[%emt 0:00:53]} d6 {[%emt 0:00:08]} 8. d4 {[%emt 0:00:15]} Bb6 {[%emt 0:00:07]} 9. a4 {[%emt 0:00:20]} Rb8 {[%emt 0:00:06]} 10. a5 {[%emt 0:01:20]} Ba7 {[%emt 0:00:24]} 11. h3 {[%emt 0:00:15]} O-O {[%emt 0:00:07]} 12. Be3 {[%emt 0:00:37]} exd4 {[%emt 0:00:15]} 13. cxd4 {[%emt 0:00:30]} Nb4 {[%emt 0:03:57]} 14. Nc3 {[%emt 0:03:55]} Bb7 {[%emt 0:14:19]} 15. e5 {[%emt 0:14:12]} dxe5 {[%emt 0:00:00]} 16. dxe5 {[%emt 0:05:51]} Bxe3 {[%emt 0:00:00]} 17. fxe3 {[%emt 0:15:25]} Ne4 {[%emt 0:00:00]} 18. e6 {[%emt 0:09:33]} fxe6 {[%emt 0:17:51]} 19. Bxe6+ {[%emt 0:01:45]} Kh8 {[%emt 0:00:05]} 20. Qxd8 {[%emt 0:04:03]} Rfxd8 {[%emt 0:05:16]} 21. Nxe4 {[%emt 0:01:41]} Bxe4 {[%emt 0:00:07]} 22. Ne5 {[%emt 0:01:08]} Re8 {[%emt 0:00:16]} 23. Nf7+ {[%emt 0:02:34]} Kg8 {[%emt 0:00:17]} 24. Ng5+ {[%emt 0:02:17]} Kh8 {[%emt 0:00:13]} 25. Nf7+ {[%emt 0:02:18]} 1/2-1/2

[Event "Czech Open GM 2020"]
[Site "Pardubice"]
[Date "2020.09.26"]
[Round "6.7"]
[White "Vogel, Roven"]
[Black "Rocco, Federico"]
[Result "1-0"]
[ECO "E15"]
[WhiteElo "2456"]
[BlackElo "2123"]
[Annotator "ChessBase"]
[PlyCount "43"]
[EventDate "2020.09.21"]
[EventCountry "CZE"]
[SourceTitle "playchess.com"]
[Source "ChessBase"]
[SourceQuality "1"]
[TimeControl "40/5400+30:1800+30"]

1. d4 {[%emt 0:00:00]} Nf6 {[%emt 0:00:00]} 2. c4 {[%emt 0:00:00]} e6 {[%emt 0:00:00]} 3. Nf3 {[%emt 0:00:08]} b6 {[%emt 0:00:00]} 4. g3 {[%emt 0:00:09]} Ba6 {[%emt 0:00:00]} 5. Qc2 {[%emt 0:00:51]} Bb7 {[%emt 0:00:03]} 6. Bg2 {[%emt 0:00:57]} c5 {[%emt 0:00:07]} 7. d5 {[%emt 0:01:03]} exd5 {[%emt 0:00:07]} 8. cxd5 {[%emt 0:00:23]} Nxd5 {[%emt 0:00:06]} 9. O-O {[%emt 0:00:29]} Be7 {[%emt 0:00:09]} 10. Rd1 {[%emt 0:03:00]} Qc8 {[%emt 0:00:05]} 11. Qf5 {[%emt 0:10:11]} Nf6 {[%emt 0:08:01]} 12. Nc3 {[%emt 0:01:06]} Na6 {[%emt 0:02:49]} 13. e4 {[%emt 0:06:12]} d6 {[%emt 0:01:39]} 14. Nh4 {[%emt 0:00:51]} Qb8 {[%emt 0:15:37]} 15. Qf3 {[%emt 0:02:28]} g6 {[%emt 0:06:39]} 16. Bh6 {[%emt 0:04:52]} Nd7 {[%emt 0:02:08]} 17. Nd5 {[%emt 0:01:52]} Qd8 {[%emt 0:05:54]} 18. Qc3 {[%emt 0:05:21]} f6 {[%emt 0:07:34]} 19. e5 {[%emt 0:13:43]} Bxd5 {[%emt 0:04:25]} 20. Bxd5 {[%emt 0:01:29]} Nxe5 {[%emt 0:08:25]} 21. f4 {[%emt 0:00:18]} Nf7 {[%emt 0:01:18]} 22. Bc6+ {[%emt 0:01:22]} 1-0

[Event "Czech Open GM 2020"]
[Site "Pardubice"]
[Date "2020.09.26"]
[Round "6.8"]
[White "Mendonca, Leon Luke"]
[Black "Bulockin, Martin"]
[Result "1-0"]
[ECO "A30"]
[WhiteElo "2490"]
[BlackElo "2297"]
[Annotator "ChessBase"]
[PlyCount "56"]
[EventDate "2020.09.21"]
[EventCountry "CZE"]
[SourceTitle "playchess.com"]
[Source "ChessBase"]
[SourceQuality "1"]
[TimeControl "40/5400+30:1800+30"]

1. Nf3 {[%emt 0:00:00]} Nf6 {[%emt 0:00:55]} 2. g3 {[%emt 0:00:00]} g6 {[%emt 0:01:03]} 3. b3 {[%emt 0:00:20]} Bg7 {[%emt 0:00:48]} 4. Bb2 {[%emt 0:00:05]} b6 {[%emt 0:02:57]} 5. Bg2 {[%emt 0:00:08]} Bb7 {[%emt 0:00:01]} 6. c4 {[%emt 0:00:41]} O-O {[%emt 0:04:37]} 7. O-O {[%emt 0:00:20]} c5 {[%emt 0:00:21]} 8. d4 {[%emt 0:00:36]} cxd4 {[%emt 0:01:01]} 9. Nxd4 {[%emt 0:07:12]} Bxg2 {[%emt 0:00:31]} 10. Kxg2 {[%emt 0:00:05]} Nc6 {[%emt 0:03:34]} 11. Nc3 {[%emt 0:04:42]} Ne8 {[%emt 0:08:34]} 12. Nc2 {[%emt 0:04:27]} Nc7 {[%emt 0:02:46]} 13. Rb1 {[%emt 0:18:53]} d6 {[%emt 0:04:22]} 14. Ne3 {[%emt 0:03:46]} Qd7 {[%emt 0:06:43]} 15. Qd2 {[%emt 0:00:46]} Rab8 {[%emt 0:05:02]} 16. Rfd1 {[%emt 0:03:20]} Rfc8 {[%emt 0:03:10]} 17. Rbc1 {[%emt 0:03:07]} Qe8 {[%emt 0:03:10]} 18. Ncd5 {[%emt 0:06:25]} Bxb2 {[%emt 0:07:48]} 19. Qxb2 {[%emt 0:00:31]} Nxd5 {[%emt 0:01:02]} 20. Nxd5 {[%emt 0:01:04]} Nd8 {[%emt 0:07:09]} 21. h4 {[%emt 0:10:03]} h5 {[%emt 0:03:41]} 22. Qd4 {[%emt 0:04:26]} Ne6 {[%emt 0:03:01]} 23. Qe3 {[%emt 0:01:01]} Rb7 {[%emt 0:03:57]} 24. a4 {[%emt 0:01:53]} Ng7 {[%emt 0:03:07]} 25. Qf3 {[%emt 0:06:44]} Qc6 {[%emt 0:01:56]} 26. e4 {[%emt 0:02:10]} Ne8 {[%emt 0:05:25]} 27. Rd3 {[%emt 0:04:13]} Kg7 {[%emt 0:01:31]} 28. Rcd1 {[%emt 0:01:18]} Rd7 {[%emt 0:00:23]} 1-0

[Event "Czech Open GM 2020"]
[Site "Pardubice"]
[Date "2020.09.26"]
[Round "6.9"]
[White "Parvanyan, Ashot"]
[Black "Finek, Vaclav"]
[Result "1/2-1/2"]
[ECO "E60"]
[WhiteElo "2458"]
[BlackElo "2344"]
[Annotator "ChessBase"]
[PlyCount "92"]
[EventDate "2020.09.21"]
[EventCountry "CZE"]
[SourceTitle "playchess.com"]
[Source "ChessBase"]
[SourceQuality "1"]
[TimeControl "40/5400+30:1800+30"]

1. Nf3 {[%emt 0:00:06]} Nf6 {[%emt 0:00:00]} 2. c4 {[%emt 0:01:31]} g6 {[%emt 0:00:00]} 3. d4 {[%emt 0:00:40]} Bg7 {[%emt 0:00:01]} 4. e3 {[%emt 0:00:21]} c5 {[%emt 0:05:04]} 5. d5 {[%emt 0:00:25]} d6 {[%emt 0:00:40]} 6. Nc3 {[%emt 0:01:43]} Bg4 {[%emt 0:01:26]} 7. Be2 {[%emt 0:01:12]} O-O {[%emt 0:02:38]} 8. O-O {[%emt 0:07:25]} Na6 {[%emt 0:04:51]} 9. e4 {[%emt 0:03:46]} Nc7 {[%emt 0:03:44]} 10. h3 {[%emt 0:12:30]} Bxf3 {[%emt 0:00:52]} 11. Bxf3 {[%emt 0:00:03]} a6 {[%emt 0:04:28]} 12. a4 {[%emt 0:00:36]} Rb8 {[%emt 0:02:17]} 13. Be2 {[%emt 0:01:44]} e6 {[%emt 0:04:22]} 14. Bf4 {[%emt 0:05:13]} e5 {[%emt 0:04:24]} 15. Be3 {[%emt 0:00:33]} a5 {[%emt 0:05:32]} 16. f4 {[%emt 0:02:47]} exf4 {[%emt 0:06:09]} 17. Bxf4 {[%emt 0:00:14]} Nfe8 {[%emt 0:02:33]} 18. Qd2 {[%emt 0:03:20]} Be5 {[%emt 0:02:32]} 19. Bg5 {[%emt 0:03:48]} f6 {[%emt 0:04:27]} 20. Be3 {[%emt 0:02:37]} Ng7 {[%emt 0:03:53]} 21. Rf3 {[%emt 0:11:12]} b6 {[%emt 0:06:53]} 22. Raf1 {[%emt 0:01:15]} Qd7 {[%emt 0:06:23]} 23. Bh6 {[%emt 0:13:51]} Rf7 {[%emt 0:04:57]} 24. h4 {[%emt 0:08:58]} Nh5 {[%emt 0:05:26]} 25. Qe1 {[%emt 0:02:29]} Re8 {[%emt 0:02:05]} 26. Bd2 {[%emt 0:05:56]} Bd4+ {[%emt 0:04:06]} 27. Kh1 {[%emt 0:00:12]} Bxc3 {[%emt 0:01:36]} 28. Rxc3 {[%emt 0:02:11]} Rxe4 {[%emt 0:00:11]} 29. Qf2 {[%emt 0:00:17]} Ng7 {[%emt 0:02:28]} 30. Bf3 {[%emt 0:01:49]} Re8 {[%emt 0:00:27]} 31. Bf4 {[%emt 0:00:36]} Rfe7 {[%emt 0:02:40]} 32. Bh2 {[%emt 0:02:19]} Rf8 {[%emt 0:02:08]} 33. Qd2 {[%emt 0:02:17]} Nce8 {[%emt 0:01:45]} 34. h5 {[%emt 0:01:23]} Nc7 {[%emt 0:04:25]} 35. hxg6 {[%emt 0:01:16]} hxg6 {[%emt 0:00:02]} 36. Qh6 {[%emt 0:00:49]} Qe8 {[%emt 0:01:24]} 37. Bd1 {[%emt 0:00:31]} Re1 {[%emt 0:00:44]} 38. Rcf3 {[%emt 0:00:19]} Rxf1+ {[%emt 0:00:28]} 39. Rxf1 {[%emt 0:00:03]} Nf5 {[%emt 0:00:53]} 40. Qf4 {[%emt 0:01:06]} Kg7 {[%emt 0:00:34]} 41. Bc2 {[%emt 0:09:55]} Nd4 {[%emt 0:08:43]} 42. Bd3 {[%emt 0:01:42]} Na6 {[%emt 0:01:42]} 43. Qxd6 {[%emt 0:10:41]} Nb4 {[%emt 0:00:36]} 44. Qg3 {[%emt 0:03:33]} Nxd3 {[%emt 0:04:31]} 45. Qxd3 {[%emt 0:00:05]} Qxa4 {[%emt 0:01:55]} 46. Re1 {[%emt 0:01:57]} Re8 {[%emt 0:03:57]} 1/2-1/2

[Event "Czech Open GM 2020"]
[Site "Pardubice"]
[Date "2020.09.26"]
[Round "6.10"]
[White "Sorensen, Hampus"]
[Black "Krasteva, Beloslava"]
[Result "1-0"]
[ECO "D30"]
[WhiteElo "2361"]
[BlackElo "2296"]
[Annotator "ChessBase"]
[PlyCount "43"]
[EventDate "2020.09.21"]
[EventCountry "CZE"]
[SourceTitle "playchess.com"]
[Source "ChessBase"]
[SourceQuality "1"]
[TimeControl "40/5400+30:1800+30"]

1. d4 {[%emt 0:07:20]} d5 {[%emt 0:00:00]} 2. c4 {[%emt 0:00:34]} e6 {[%emt 0:00:14]} 3. Nf3 {[%emt 0:00:41]} Nf6 {[%emt 0:00:21]} 4. Bg5 {[%emt 0:00:42]} Be7 {[%emt 0:00:20]} 5. e3 {[%emt 0:01:08]} h6 {[%emt 0:00:19]} 6. Bxf6 {[%emt 0:02:49]} Bxf6 {[%emt 0:00:32]} 7. Qc2 {[%emt 0:00:08]} a6 {[%emt 0:10:01]} 8. Nc3 {[%emt 0:06:36]} b6 {[%emt 0:10:07]} 9. Rd1 {[%emt 0:09:30]} O-O {[%emt 0:04:50]} 10. Bd3 {[%emt 0:03:46]} dxc4 {[%emt 0:01:40]} 11. Bh7+ {[%emt 0:02:25]} Kh8 {[%emt 0:00:16]} 12. Be4 {[%emt 0:00:10]} Ra7 {[%emt 0:02:38]} 13. h4 {[%emt 0:03:42]} Be7 {[%emt 0:09:03]} 14. Ne5 {[%emt 0:06:02]} Bb7 {[%emt 0:10:07]} 15. g4 {[%emt 0:05:11]} Bxe4 {[%emt 0:06:38]} 16. Qxe4 {[%emt 0:01:56]} Bb4 {[%emt 0:06:31]} 17. Ke2 {[%emt 0:03:33]} Qe8 {[%emt 0:03:40]} 18. g5 {[%emt 0:05:31]} Bxc3 {[%emt 0:05:51]} 19. gxh6 {[%emt 0:02:17]} g6 {[%emt 0:03:17]} 20. Nxg6+ {[%emt 0:01:43]} Kg8 {[%emt 0:03:00]} 21. Rdg1 {[%emt 0:04:01]} f5 {[%emt 0:05:30]} 22. Qe5 {[%emt 0:00:16]} 1-0

[Event "Czech Open GM 2020"]
[Site "Pardubice"]
[Date "2020.09.26"]
[Round "6.11"]
[White "Pantzar, Milton"]
[Black "Sernecki, Franciszek"]
[Result "1/2-1/2"]
[ECO "E27"]
[WhiteElo "2424"]
[BlackElo "2248"]
[Annotator "ChessBase"]
[PlyCount "92"]
[EventDate "2020.09.21"]
[EventCountry "CZE"]
[SourceTitle "playchess.com"]
[Source "ChessBase"]
[SourceQuality "1"]
[TimeControl "40/5400+30:1800+30"]

1. d4 {[%emt 0:07:07]} Nf6 {[%emt 0:00:00]} 2. c4 {[%emt 0:00:12]} e6 {[%emt 0:00:00]} 3. Nc3 {[%emt 0:00:29]} Bb4 {[%emt 0:00:00]} 4. f3 {[%emt 0:00:10]} O-O {[%emt 0:01:22]} 5. a3 {[%emt 0:04:10]} Bxc3+ {[%emt 0:00:14]} 6. bxc3 {[%emt 0:00:07]} Nh5 {[%emt 0:00:53]} 7. Nh3 {[%emt 0:03:35]} f5 {[%emt 0:01:53]} 8. e3 {[%emt 0:08:03]} d6 {[%emt 0:06:08]} 9. c5 {[%emt 0:05:03]} b6 {[%emt 0:15:22]} 10. cxd6 {[%emt 0:01:36]} cxd6 {[%emt 0:00:29]} 11. a4 {[%emt 0:06:15]} Ba6 {[%emt 0:12:30]} 12. Bxa6 {[%emt 0:05:43]} Nxa6 {[%emt 0:00:46]} 13. Qd3 {[%emt 0:02:00]} Nc7 {[%emt 0:06:38]} 14. O-O {[%emt 0:01:51]} Qd7 {[%emt 0:03:46]} 15. Ba3 {[%emt 0:04:58]} Rfd8 {[%emt 0:10:23]} 16. e4 {[%emt 0:02:58]} Nf6 {[%emt 0:03:55]} 17. c4 {[%emt 0:07:04]} d5 {[%emt 0:08:00]} 18. exd5 {[%emt 0:12:16]} exd5 {[%emt 0:00:30]} 19. c5 {[%emt 0:00:14]} bxc5 {[%emt 0:08:51]} 20. Bxc5 {[%emt 0:01:41]} Ne6 {[%emt 0:01:01]} 21. Rfc1 {[%emt 0:06:43]} Rac8 {[%emt 0:01:41]} 22. a5 {[%emt 0:07:10]} Nxc5 {[%emt 0:03:04]} 23. dxc5 {[%emt 0:00:33]} d4 {[%emt 0:00:50]} 24. Nf4 {[%emt 0:02:30]} Rc6 {[%emt 0:05:31]} 25. Qc4+ {[%emt 0:01:02]} Qf7 {[%emt 0:01:42]} 26. Nd3 {[%emt 0:00:12]} Qxc4 {[%emt 0:03:26]} 27. Rxc4 {[%emt 0:00:02]} Re8 {[%emt 0:00:23]} 28. Rxd4 {[%emt 0:01:09]} Re2 {[%emt 0:00:52]} 29. Kf1 {[%emt 0:01:25]} Re7 {[%emt 0:00:13]} 30. Rb1 {[%emt 0:00:41]} h6 {[%emt 0:01:41]} 31. Kf2 {[%emt 0:02:59]} g5 {[%emt 0:01:38]} 32. Rb8+ {[%emt 0:01:08]} Kg7 {[%emt 0:00:16]} 33. Rdb4 {[%emt 0:02:50]} Ra6 {[%emt 0:01:50]} 34. R4b7 {[%emt 0:00:52]} Rxb7 {[%emt 0:00:33]} 35. Rxb7+ {[%emt 0:00:01]} Kf8 {[%emt 0:00:20]} 36. Ne5 {[%emt 0:01:06]} Nd5 {[%emt 0:00:36]} 37. Rd7 {[%emt 0:01:28]} Ne7 {[%emt 0:00:37]} 38. Nc4 {[%emt 0:00:46]} Rc6 {[%emt 0:00:21]} 39. Rxa7 {[%emt 0:00:34]} Rxc5 {[%emt 0:00:08]} 40. Ne3 {[%emt 0:00:41]} f4 {[%emt 0:00:34]} 41. Ng4 {[%emt 0:03:26]} Rc2+ {[%emt 0:02:28]} 42. Kf1 {[%emt 0:01:31]} h5 {[%emt 0:03:34]} 43. Nf6 {[%emt 0:11:25]} Nf5 {[%emt 0:00:45]} 44. Nh7+ {[%emt 0:00:11]} Kg8 {[%emt 0:00:27]} 45. Nf6+ {[%emt 0:00:10]} Kf8 {[%emt 0:00:03]} 46. Nh7+ {[%emt 0:00:06]} Kg8 {[%emt 0:00:04]} 1/2-1/2

[Event "Czech Open GM 2020"]
[Site "Pardubice"]
[Date "2020.09.26"]
[Round "6.12"]
[White "Seitz, Patrick"]
[Black "Lizak, Peter"]
[Result "1/2-1/2"]
[ECO "B15"]
[WhiteElo "2186"]
[BlackElo "2457"]
[Annotator "ChessBase"]
[PlyCount "87"]
[EventDate "2020.09.21"]
[EventCountry "CZE"]
[SourceTitle "playchess.com"]
[Source "ChessBase"]
[SourceQuality "1"]
[TimeControl "40/5400+30:1800+30"]

1. e4 c6 2. Nc3 d5 3. Nf3 {[%emt 0:00:41]} dxe4 {[%emt 0:00:00]} 4. Nxe4 {[%emt 0:00:12]} Nf6 {[%emt 0:00:00]} 5. Nxf6+ {[%emt 0:00:00]} exf6 {[%emt 0:00:01]} 6. d4 {[%emt 0:00:00]} Bd6 {[%emt 0:00:08]} 7. Bd3 {[%emt 0:00:00]} O-O {[%emt 0:00:10]} 8. O-O {[%emt 0:01:10]} Bg4 9. h3 {[%emt 0:00:00]} Bh5 {[%emt 0:00:24]} 10. c3 {[%emt 0:00:45]} Re8 {[%emt 0:02:49]} 11. Bf5 {[%emt 0:02:43]} Nd7 {[%emt 0:18:19]} 12. Qd3 {[%emt 0:03:27]} Bg6 {[%emt 0:00:15]} 13. Bd2 {[%emt 0:03:07]} Nf8 {[%emt 0:09:27]} 14. Rfe1 {[%emt 0:02:47]} Qa5 {[%emt 0:06:16]} 15. Nh4 {[%emt 0:03:48]} Rxe1+ {[%emt 0:02:20]} 16. Bxe1 {[%emt 0:00:10]} Re8 {[%emt 0:01:45]} 17. Bd2 {[%emt 0:02:32]} Ne6 {[%emt 0:08:50]} 18. a4 {[%emt 0:03:58]} Nf4 {[%emt 0:04:04]} 19. Bxf4 {[%emt 0:03:54]} Bxf4 {[%emt 0:00:08]} 20. Nxg6 {[%emt 0:00:39]} hxg6 {[%emt 0:01:09]} 21. Be4 {[%emt 0:00:43]} Qd8 {[%emt 0:10:18]} 22. g3 {[%emt 0:03:08]} Bc7 {[%emt 0:00:50]} 23. b4 {[%emt 0:01:36]} f5 {[%emt 0:05:57]} 24. Bf3 {[%emt 0:02:21]} Qg5 {[%emt 0:09:21]} 25. Bg2 {[%emt 0:11:11]} f4 {[%emt 0:01:55]} 26. g4 {[%emt 0:00:54]} a5 {[%emt 0:04:24]} 27. d5 {[%emt 0:07:53]} cxd5 {[%emt 0:01:17]} 28. Qxd5 {[%emt 0:03:31]} Qf6 29. Rc1 {[%emt 0:05:51]} b6 30. Bf3 {[%emt 0:04:00]} Rd8 31. Qc4 {[%emt 0:02:17]} Qe5 32. Rc2 {[%emt 0:01:27]} Bd6 33. Re2 {[%emt 0:05:10]} Qf6 {[%emt 0:12:12]} 34. bxa5 {[%emt 0:00:49]} bxa5 35. Qc6 {[%emt 0:00:25]} Be5 {[%emt 0:03:07]} 36. c4 {[%emt 0:00:42]} Rd1+ {[%emt 0:01:12]} 37. Kg2 {[%emt 0:00:27]} Qxc6 {[%emt 0:00:23]} 38. Bxc6 {[%emt 0:00:09]} f6 {[%emt 0:00:16]} 39. Be4 {[%emt 0:07:25]} g5 {[%emt 0:06:12]} 40. Rc2 {[%emt 0:00:19]} Kf8 {[%emt 0:00:00]} 41. Kf3 {[%emt 0:46:32]} Ke7 {[%emt 0:01:26]} 42. c5 {[%emt 0:00:00]} Kd8 {[%emt 0:02:14]} 43. c6 {[%emt 0:00:00]} Kc7 {[%emt 0:08:14]} 44. Rc5 {[%emt 0:10:40]} 1/2-1/2

[Event "Czech Open GM 2020"]
[Site "Pardubice"]
[Date "2020.09.26"]
[Round "6.13"]
[White "Jedlicka, Ales"]
[Black "Koziak, Vitali"]
[Result "1/2-1/2"]
[ECO "A58"]
[WhiteElo "2197"]
[BlackElo "2434"]
[Annotator "ChessBase"]
[PlyCount "67"]
[EventDate "2020.09.21"]
[EventCountry "CZE"]
[SourceTitle "playchess.com"]
[Source "ChessBase"]
[SourceQuality "1"]
[TimeControl "40/5400+30:1800+30"]

1. d4 {[%emt 0:00:00]} Nf6 {[%emt 0:00:00]} 2. c4 {[%emt 0:00:06]} c5 {[%emt 0:00:00]} 3. d5 {[%emt 0:00:22]} b5 {[%emt 0:00:00]} 4. cxb5 {[%emt 0:01:07]} a6 {[%emt 0:00:00]} 5. bxa6 {[%emt 0:00:17]} g6 {[%emt 0:00:12]} 6. Nc3 {[%emt 0:00:24]} Bg7 {[%emt 0:00:07]} 7. e4 {[%emt 0:00:47]} O-O {[%emt 0:01:42]} 8. a7 {[%emt 0:00:27]} Rxa7 {[%emt 0:01:28]} 9. Nf3 {[%emt 0:00:34]} d6 {[%emt 0:03:09]} 10. Be2 {[%emt 0:01:07]} Ba6 {[%emt 0:07:52]} 11. O-O {[%emt 0:01:14]} Nbd7 {[%emt 0:04:34]} 12. a4 {[%emt 0:05:15]} Qa8 {[%emt 0:02:40]} 13. Bg5 {[%emt 0:01:40]} h6 {[%emt 0:05:40]} 14. Bd2 {[%emt 0:01:34]} Bxe2 {[%emt 0:04:08]} 15. Qxe2 {[%emt 0:00:19]} Rb8 {[%emt 0:00:11]} 16. Rfb1 {[%emt 0:03:11]} Ne8 {[%emt 0:12:04]} 17. b3 {[%emt 0:08:11]} Nc7 {[%emt 0:00:20]} 18. Ra3 {[%emt 0:01:04]} Bxc3 {[%emt 0:11:39]} 19. Bxc3 {[%emt 0:01:40]} Nb5 {[%emt 0:00:11]} 20. axb5 {[%emt 0:00:58]} Rxa3 {[%emt 0:03:08]} 21. h4 {[%emt 0:07:09]} Rb7 {[%emt 0:11:44]} 22. h5 {[%emt 0:05:54]} g5 {[%emt 0:10:08]} 23. e5 {[%emt 0:03:40]} Qf8 {[%emt 0:03:49]} 24. e6 {[%emt 0:00:56]} Nf6 {[%emt 0:06:23]} 25. Bxf6 {[%emt 0:01:52]} exf6 {[%emt 0:00:13]} 26. Qb2 {[%emt 0:00:24]} Ra8 {[%emt 0:04:17]} 27. Qxf6 {[%emt 0:00:41]} fxe6 {[%emt 0:00:31]} 28. Qg6+ {[%emt 0:04:59]} Rg7 {[%emt 0:00:06]} 29. Qxe6+ {[%emt 0:06:23]} Kh7 {[%emt 0:00:27]} 30. Re1 {[%emt 0:01:48]} Rb8 {[%emt 0:06:08]} 31. Qe4+ {[%emt 0:01:37]} Kg8 {[%emt 0:00:45]} 32. Qe6+ {[%emt 0:00:22]} Kh7 {[%emt 0:00:14]} 33. Qe4+ {[%emt 0:01:04]} Kg8 {[%emt 0:00:01]} 34. Qe6+ {[%emt 0:00:16]} 1/2-1/2